fUST/lending_fUST_20250920
["ID","MTS","AMOUNT","RATE_DAILY","PERIOD"]
[386438995,1758298254686,-151.0,0.00026228,2]
[386438996,1758298254695,-151.0,0.00026228,2]
[386438997,1758298254705,-500.0,0.00026228,2]
[386438998,1758298254714,-151.0,0.00026228,2]
[386438999,1758298254725,-151.0,0.00026228,2]
[386439000,1758298254735,-151.0,0.00026228,2]
[386439001,1758298254744,-151.0,0.00026228,2]
[386439002,1758298254755,-151.0,0.00026228,7]
[386439003,1758298254764,-151.0,0.00026228,7]
[386439004,1758298254774,-151.0,0.00026228,7]
[386439005,1758298254784,-151.0,0.00026228,7]
[386439006,1758298254793,-151.0,0.00026228,7]
[386439007,1758298254803,-151.0,0.00026228,7]
[386439008,1758298254812,-151.0,0.00026228,7]
[386439009,1758298254822,-10799.09,0.00026283,2]
[386439010,1758298254831,-534.23,0.00026283,2]
[386439011,1758298254841,-1347.62,0.00026283,2]
[386439012,1758298254850,-204.161602,0.00026283,7]
[386439013,1758298254861,-204.161602,0.00026283,7]
[386439014,1758298254871,-151.0,0.00026283,7]
[386439015,1758298254881,-204.161602,0.00026283,7]
[386439016,1758298254890,-204.161602,0.00026283,7]
[386439017,1758298254899,-151.0,0.00026295,7]
[386439018,1758298254909,-533.26,0.00026309,2]
[386439019,1758298254919,-646.93,0.0002631,2]
[386439020,1758298254929,-1361.13,0.0002631,2]
[386439021,1758298254938,-480.0,0.0002631,2]
[386439022,1758298254947,-521.050658,0.0002631,7]
[386439023,1758298254957,-521.050658,0.0002631,7]
[386439024,1758298254966,-521.050658,0.0002631,7]
[386439025,1758298254976,-521.050658,0.0002631,7]
[386439026,1758298254986,-151.0,0.0002631,7]
[386439027,1758298254995,-151.0,0.0002631,7]
[386439028,1758298255005,-151.0,0.0002631,7]
[386439029,1758298255015,-599.3,0.0002631,2]
[386439030,1758298255025,-151.0,0.0002631,7]
[386439031,1758298255035,-151.0,0.0002631,7]
[386439032,1758298255045,-151.0,0.0002631,7]
[386439033,1758298255055,-1468.19,0.0002631,2]
[386439034,1758298255065,-495.93,0.00026313,2]
[386439035,1758298255074,-546.66,0.00026313,2]
[386439036,1758298255084,-535.06,0.00026313,2]
[386439037,1758298255094,-480.0,0.00026313,2]
[386439038,1758298255103,-1070.64,0.00026313,2]
[386439039,1758298255113,-502.6,0.00026313,2]
[386439040,1758298255123,-1374.77,0.00026315,2]
[386439041,1758298255132,-2996.7,0.00026315,2]
[386439042,1758298255142,-594.33715917,0.00026315,2]
[386439043,1758298255152,-2496.35,0.00026316,2]
[386439044,1758298255161,-977.9,0.00026316,2]
[386439045,1758298255171,-313.19192184,0.00026316,2]
[386439046,1758298255180,-553.87,0.00026316,2]
[386439047,1758298255190,-688.05,0.00026319,2]
[386439048,1758298255200,-515.89,0.00026319,2]
[386439049,1758298255209,-151.0,0.00026319,7]
[386439050,1758298255219,-151.0,0.00026319,7]
[386439051,1758298255229,-735.66,0.00026319,2]
[386439052,1758298255238,-480.0,0.00026321,2]
[386439053,1758298255248,-480.0,0.00026321,2]
[386439054,1758298255258,-762.42,0.00026358,2]
[386439055,1758298255272,-2766.93,0.00026358,2]
[386439056,1758298255282,-321123.41246214,0.0002644,2]
[386439057,1758298255391,-28019.95419037,0.0002644,2]
[386439058,1758298255472,480.0,0.00021108,2]
[386439059,1758298255575,480.0,0.00021108,2]
[386439060,1758298255775,480.0,0.00021153,2]
[386439061,1758298255878,480.0,0.00021108,2]
[386439062,1758298255975,480.0,0.00021108,2]
[386439063,1758298256123,507.81,0.00021108,2]
[386439064,1758298256219,480.0,0.00021108,2]
[386439065,1758298256482,480.0,0.00021153,2]
[386439066,1758298256628,150.0,0.00019382,2]
[386439067,1758298265183,-480.0,0.00021104,2]
[386439068,1758298265281,-1800.76,0.00021104,2]
[386439069,1758298265383,-480.0,0.00021104,2]
[386439070,1758298265472,-480.0,0.00021104,2]
[386439071,1758298265564,-300.0,0.00021104,2]
[386439072,1758298265652,-480.0,0.00021105,2]
[386439073,1758298265739,-480.0,0.00021105,2]
[386439074,1758298265828,-480.0,0.00021105,2]
[386439078,1758298273109,-480.0,0.00021108,2]
[386439079,1758298273197,-483.75788683,0.00021108,2]
[386439080,1758298273285,-480.0,0.00021108,2]
[386439081,1758298273363,-447.91463731,0.00021108,2]
[386439082,1758298273444,-480.0,0.00021108,2]
[386439083,1758298273525,-480.0,0.00021108,2]
[386439084,1758298273607,-1000.0,0.00021108,2]
[386439085,1758298273684,-480.88721694,0.00021108,2]
[386439086,1758298273766,-480.0,0.00021108,2]
[386439087,1758298274115,-480.0,0.00021104,2]
[386439088,1758298274194,-489.41121436,0.00021108,2]
[386439089,1758298274287,-533.22894669,0.00021108,2]
[386439090,1758298274375,-480.0,0.00021108,2]
[386439091,1758298274458,-480.0,0.00021108,2]
[386439092,1758298274544,-480.0,0.00021108,2]
[386439093,1758298274624,-508.75504276,0.00021108,2]
[386439094,1758298274704,-480.0,0.00021108,2]
[386439095,1758298274784,-480.0,0.00021108,2]
[386439096,1758298274864,-480.0,0.00021108,2]
[386439097,1758298283132,-480.0,0.00021104,2]
[386439098,1758298283221,-614.14,0.00021105,2]
[386439099,1758298283322,-480.0,0.00021108,2]
[386439100,1758298283403,-480.0,0.00021108,2]
[386439101,1758298283483,-480.0,0.00021108,2]
[386439102,1758298283563,-480.0,0.00021108,2]
[386439103,1758298283640,-266.33135434,0.00021108,2]
[386439104,1758298283715,-500.0,0.0002111,2]
[386439105,1758298283795,-500.0,0.0002111,2]
[386439106,1758298283872,-480.0,0.00021112,2]
[386439107,1758298284166,-480.0,0.00021112,2]
[386439108,1758298284244,-500.0,0.00021112,2]
[386439109,1758298284328,-500.0,0.00021112,2]
[386439110,1758298284414,-500.0,0.00021112,2]
[386439111,1758298284502,-500.0,0.00021112,2]
[386439112,1758298284584,-500.0,0.00021112,2]
[386439113,1758298284659,-500.0,0.00021112,2]
[386439114,1758298284739,-500.0,0.00021112,2]
[386439115,1758298284821,-500.0,0.00021112,2]
[386439116,1758298284904,-500.0,0.00021112,2]
[386439118,1758298291442,200.0,0.0002701,120]
[386439119,1758298293132,-480.0,0.00021104,2]
[386439120,1758298293215,-480.0,0.00021104,2]
[386439121,1758298293297,-828.01,0.00021105,2]
[386439122,1758298293514,-480.0,0.00021108,2]
[386439123,1758298293591,-480.0,0.00021108,2]
[386439124,1758298293667,-500.0,0.00021108,2]
[386439125,1758298293746,-500.0,0.00021108,2]
[386439126,1758298293828,-500.0,0.00021108,2]
[386439127,1758298294282,-1663.55,0.00021108,2]
[386439128,1758298294366,-500.0,0.00021108,2]
[386439129,1758298294447,-500.0,0.00021108,2]
[386439130,1758298294531,-500.0,0.00021108,2]
[386439131,1758298294610,-500.0,0.00021108,2]
[386439132,1758298294687,-480.0,0.00021108,2]
[386439133,1758298294770,-500.0,0.00021112,2]
[386439134,1758298294846,-212.91,0.00021112,2]
[386439135,1758298303131,-480.0,0.00021108,2]
[386439136,1758298303200,-480.0,0.00021108,2]
[386439137,1758298303282,-480.0,0.00021108,2]
[386439138,1758298303354,-480.0,0.00021108,2]
[386439139,1758298303422,-500.50040475,0.00021108,2]
[386439140,1758298303494,-323.61722602,0.00021108,2]
[386439141,1758298303566,-480.3606383,0.00021108,2]
[386439142,1758298303636,-480.0,0.00021108,2]
[386439143,1758298303712,-843.82,0.00021108,2]
[386439144,1758298303787,-423.41346186,0.00021108,2]
[386439145,1758298304082,-56.58653814,0.00021108,2]
[386439146,1758298304153,-480.0,0.00021108,2]
[386439147,1758298304225,-480.0,0.00021108,2]
[386439148,1758298304300,-480.0,0.00021108,2]
[386439149,1758298304376,-480.0,0.00021108,2]
[386439150,1758298304454,-287.09,0.00021112,2]
[386439151,1758298304532,-500.0,0.00021112,2]
[386439152,1758298304609,-500.0,0.00021112,2]
[386439153,1758298304688,-500.0,0.00021112,2]
[386439154,1758298304767,-500.0,0.00021112,2]
[386439155,1758298304842,-500.0,0.00021112,2]
[386439156,1758298313195,-1152.28,0.00021104,2]
[386439157,1758298313268,-480.0,0.00021105,2]
[386439158,1758298313342,-480.0,0.00021105,2]
[386439159,1758298313411,-480.0,0.00021108,2]
[386439160,1758298313488,-480.0,0.00021108,2]
[386439161,1758298313561,-480.0,0.00021108,7]
[386439162,1758298313632,-480.0,0.00021108,2]
[386439163,1758298313709,-480.0,0.00021108,2]
[386439164,1758298313786,-480.0,0.00021108,2]
[386439165,1758298335232,172.0,0.00020877,3]
[386439167,1758298355520,-480.0,0.00021104,2]
[386439168,1758298355601,-480.0,0.00021104,2]
[386439169,1758298355683,-480.0,0.00021104,2]
[386439170,1758298355767,-480.0,0.00021104,2]
[386439171,1758298355853,-1200.45,0.00021104,2]
[386439172,1758298355932,-480.0,0.00021105,2]
[386439173,1758298356014,-480.0,0.00021105,2]
[386439174,1758298356097,-639.11,0.00021107,2]
[386439175,1758298363248,-480.0,0.00021104,2]
[386439176,1758298363325,-560.89,0.00021107,2]
[386439177,1758298363403,-480.0,0.00021108,2]
[386439178,1758298363476,-331.91581736,0.00021108,2]
[386439179,1758298363554,-480.0,0.00021108,2]
[386439180,1758298363629,-480.0,0.00021108,2]
[386439181,1758298363713,-480.0,0.00021108,2]
[386439182,1758298363790,-480.0,0.00021108,2]
[386439183,1758298363883,-480.0,0.00021108,2]
[386439184,1758298363968,-480.0,0.00021108,2]
[386439185,1758298364055,-54.39836528,0.00021108,2]
[386439187,1758298373312,-480.0,0.00021104,2]
[386439188,1758298373397,-598.82,0.00021105,2]
[386439189,1758298373483,-425.60163472,0.00021108,2]
[386439190,1758298373567,-480.0,0.00021108,2]
[386439191,1758298373646,-480.0,0.00021108,2]
[386439192,1758298373724,-480.0,0.00021108,2]
[386439193,1758298373818,-480.0,0.00021108,2]
[386439194,1758298373901,-150.39902207,0.00021108,2]
[386439195,1758298373984,-480.0,0.00021108,2]
[386439196,1758298374068,-469.68326936,0.00021108,2]
[386439197,1758298374147,-471.0021477,0.00021108,2]
[386439198,1758298377854,150.0,0.00019379,2]
[386439199,1758298378830,150.0,0.00020302,2]
[386439200,1758298405435,-480.0,0.00021104,2]
[386439201,1758298405514,-480.0,0.00021104,2]
[386439202,1758298405599,-480.0,0.00021104,2]
[386439203,1758298405682,-791.67,0.00021105,2]
[386439204,1758298405759,-300.0,0.00021107,2]
[386439205,1758298405837,-8.9978523,0.00021108,2]
[386439206,1758298405918,-480.0,0.00021108,2]
[386439207,1758298405992,-288.72090606,0.00021108,2]
[386439208,1758298406071,-480.0,0.00021108,2]
[386439209,1758298406147,-480.0,0.00021108,2]
[386439210,1758298406222,-480.0,0.00021108,2]
[386439211,1758298406298,-21.23248328,0.00021108,2]
[386439212,1758298413394,-480.0,0.00021104,2]
[386439213,1758298413492,-480.0,0.00021105,2]
[386439214,1758298413578,-458.76751672,0.00021108,2]
[386439215,1758298413659,-480.0,0.00021108,2]
[386439216,1758298413748,-200.30158333,0.00021108,2]
[386439217,1758298413836,-480.0,0.00021108,2]
[386439218,1758298413918,-480.0,0.00021108,2]
[386439219,1758298414013,-480.0,0.00021108,2]
[386439220,1758298414105,-480.0,0.00021108,2]
[386439221,1758298414185,-480.0,0.00021108,2]
[386439222,1758298414265,-482.73313728,0.00021108,2]
[386439223,1758298428553,-453.23077905,0.00021104,2]
[386439224,1758298428633,-401.01477789,0.00021105,2]
[386439225,1758298428932,-3597.69779774,0.00021108,2]
[386439226,1758298438408,-480.0,0.00021104,2]
[386439227,1758298438498,-480.0,0.00021105,2]
[386439228,1758298438585,-480.0,0.00021105,2]
[386439229,1758298438876,-7120.01,0.00021108,2]
[386439230,1758298438949,-10000.01,0.00021108,2]
[386439231,1758298439034,-10000.01,0.00021108,2]
[386439232,1758298448417,-480.0,0.00021104,2]
[386439233,1758298448512,-480.0,0.00021104,2]
[386439234,1758298448592,-300.0,0.00021107,2]
[386439235,1758298448922,-7480.01,0.00021108,2]
[386439236,1758298449038,-5956.84711084,0.00021108,2]
[386439237,1758298449047,-480.0,0.00021108,2]
[386439238,1758298449056,-495.4758876,0.00021108,2]
[386439239,1758298449066,-480.0,0.00021108,2]
[386439240,1758298449075,-480.0,0.00021108,2]
[386439241,1758298449084,-429.65046888,0.00021108,2]
[386439242,1758298449094,-480.0,0.00021108,2]
[386439243,1758298449103,-480.0,0.00021108,2]
[386439244,1758298449114,-480.0,0.00021108,2]
[386439245,1758298449123,-238.03653268,0.00021108,2]
[386439246,1758298449206,-241.96346732,0.00021108,2]
[386439247,1758298449287,-480.0,0.00021108,2]
[386439248,1758298449368,-352.95269161,0.00021108,2]
[386439249,1758298449451,-480.0,0.00021108,2]
[386439250,1758298449539,-480.0,0.00021108,2]
[386439251,1758298449625,-480.0,0.00021108,2]
[386439252,1758298449715,-480.0,0.00021108,2]
[386439253,1758298449799,-480.0,0.00021108,2]
[386439254,1758298449887,-480.0,0.00021108,2]
[386439255,1758298449971,-480.0,0.00021108,2]
[386439256,1758298450054,-480.0,0.00021108,2]
[386439257,1758298450179,-480.0,0.00021108,2]
[386439258,1758298450259,-480.0,0.00021108,2]
[386439259,1758298450341,-480.0,0.00021108,2]
[386439260,1758298450422,-480.0,0.00021108,2]
[386439261,1758298450512,-480.0,0.00021108,2]
[386439262,1758298450594,-481.98403112,0.00021108,2]
[386439263,1758298450678,-480.0,0.00021108,2]
[386439264,1758298450758,-480.0,0.00021108,2]
[386439265,1758298450841,-480.0,0.00021108,2]
[386439266,1758298450920,-480.0,0.00021108,2]
[386439267,1758298452522,-172.16171326,0.00021104,2]
[386439268,1758298452596,-307.83828674,0.00021104,2]
[386439269,1758298452606,-88.20365102,0.00021108,2]
[386439270,1758298455004,150.0,0.00019366,2]
[386439271,1758298455483,150.0,0.00020288,2]
[386439272,1758298456395,173.981,0.0002076,2]
[386439273,1758298458555,-391.79634898,0.00021108,2]
[386439274,1758298458683,-523.55582964,0.00021108,2]
[386439275,1758298458809,-480.0,0.00021108,2]
[386439276,1758298458912,-480.0,0.00021108,2]
[386439277,1758298459009,-480.0,0.00021108,2]
[386439278,1758298459105,-480.0,0.00021108,2]
[386439279,1758298459201,-480.0,0.00021108,2]
[386439280,1758298459298,-480.0,0.00021108,2]
[386439281,1758298459387,-480.0,0.00021108,2]
[386439282,1758298459478,-480.0,0.0002111,2]
[386439283,1758298459566,-9.30564276,0.0002111,2]
[386439284,1758298460388,-470.69435724,0.00021108,2]
[386439285,1758298477569,153.24592102,0.00021015,2]
[386439287,1758298532284,150.0,0.00019395,2]
[386439288,1758298532761,150.0,0.00020319,2]
[386439299,1758298609040,150.0,0.00019376,2]
[386439300,1758298609473,150.0,0.00020298,2]
[386439301,1758298612797,9500.0,0.000211,3]
[386439303,1758298615373,1316.26997311,0.00021004,2]
[386439308,1758298642675,233.54,0.00021098,10]
[386439310,1758298650001,161.0,0.00020877,3]
[386439311,1758298651971,200.0,0.00026752,120]
[386439313,1758298659921,198.54117039,0.00021003,2]
[386439320,1758298679359,2000.0,0.00027397,120]
[386439322,1758298687245,150.0,0.00019377,2]
[386439323,1758298687734,150.0,0.000203,2]
[386439324,1758298692700,164.38936692,0.00021,2]
[386439326,1758298697858,4000.0,0.000211,2]
[386439327,1758298760403,150.0,0.00019361,2]
[386439328,1758298760894,150.0,0.00020283,2]
[386439336,1758298829443,150.0,0.00019393,2]
[386439337,1758298829921,150.0,0.00020317,2]
[386439340,1758298895601,1151.73622641,0.00021002,2]
[386439341,1758298897694,150.0,0.00019379,2]
[386439342,1758298898192,150.0,0.00020302,2]
[386439344,1758298948625,62304.0,0.00021,7]
[386439345,1758298965811,150.0,0.00019391,2]
[386439346,1758298965949,157.0,0.00020877,3]
[386439347,1758298966803,150.0,0.00020315,2]
[386439355,1758299033575,150.0,0.00019356,2]
[386439356,1758299042468,300.0,0.000211,2]
[386439357,1758299054013,5875.82695823,0.00021013,2]
[386439358,1758299094400,480.0,0.000211,2]
[386439359,1758299098721,3013.81208058,0.00021013,2]
[386439360,1758299102210,300.0,0.00021099,2]
[386439361,1758299108913,1200.0,0.00021099,2]
[386439363,1758299121208,480.0,0.000211,2]
[386439367,1758299136867,480.0,0.000211,2]
[386439368,1758299139466,400.0,0.00029407,120]
[386439369,1758299152374,965.75,0.000211,2]
[386439370,1758299153838,480.0,0.000211,2]
[386439371,1758299162786,300.0,0.00021099,2]
[386439372,1758299165751,150.0,0.00019372,2]
[386439376,1758299175862,1007.76919817,0.00021,2]
[386439378,1758299193471,250.5532069,0.00021099,2]
[386439379,1758299194392,28175.61406558,0.000211,2]
[386439380,1758299194882,372.82317199,0.00021099,2]
[386439381,1758299194919,500.0,0.00021099,2]
[386439382,1758299194957,500.0,0.00021099,2]
[386439383,1758299194994,500.0,0.00021099,2]
[386439384,1758299195028,295.44204982,0.00021099,2]
[386439385,1758299195065,203.14286685,0.00021099,2]
[386439386,1758299195226,500.0,0.00021099,2]
[386439387,1758299195264,500.0,0.00021099,2]
[386439388,1758299195299,500.0,0.00021099,2]
[386439389,1758299195332,207.08853447,0.00021099,2]
[386439390,1758299195396,500.0,0.00021099,2]
[386439391,1758299195439,500.0,0.00021099,2]
[386439392,1758299195486,500.0,0.00021099,2]
[386439393,1758299195531,500.0,0.00021099,2]
[386439394,1758299195586,500.0,0.00021099,2]
[386439395,1758299195632,500.0,0.00021099,2]
[386439396,1758299195676,500.0,0.00021099,2]
[386439397,1758299195721,500.0,0.00021099,2]
[386439398,1758299195763,500.0,0.00021099,2]
[386439399,1758299195818,500.0,0.00021099,2]
[386439400,1758299195871,500.0,0.00021099,2]
[386439401,1758299195918,500.0,0.00021099,2]
[386439402,1758299195967,500.0,0.00021099,2]
[386439403,1758299196015,343.62988656,0.00021099,2]
[386439404,1758299196062,500.0,0.00021099,2]
[386439405,1758299196101,500.0,0.00021099,2]
[386439406,1758299196148,500.0,0.00021099,2]
[386439407,1758299196272,500.0,0.00021099,2]
[386439408,1758299196316,500.0,0.00021099,2]
[386439409,1758299196362,500.0,0.00021099,2]
[386439410,1758299196406,500.0,0.00021099,2]
[386439411,1758299196449,500.0,0.00021099,2]
[386439412,1758299196497,500.0,0.00021099,2]
[386439413,1758299196549,500.0,0.00021099,2]
[386439414,1758299196588,500.0,0.00021099,2]
[386439415,1758299196629,500.0,0.00021099,2]
[386439416,1758299196673,500.0,0.00021099,2]
[386439417,1758299196719,500.0,0.00021099,2]
[386439418,1758299196766,500.0,0.00021099,2]
[386439419,1758299196809,500.0,0.00021099,2]
[386439420,1758299196860,500.0,0.00021099,2]
[386439421,1758299196902,500.0,0.00021099,2]
[386439422,1758299196941,500.0,0.00021099,2]
[386439423,1758299197161,500.0,0.00021099,2]
[386439424,1758299197207,500.0,0.00021099,2]
[386439425,1758299197246,500.0,0.00021099,2]
[386439426,1758299197282,589.48863047,0.00021099,2]
[386439427,1758299197324,500.0,0.00021099,2]
[386439428,1758299197361,500.0,0.00021099,2]
[386439429,1758299197403,500.0,0.00021099,2]
[386439430,1758299197442,500.0,0.00021099,2]
[386439431,1758299197491,500.0,0.00021099,2]
[386439432,1758299197537,500.0,0.00021099,2]
[386439433,1758299197587,500.0,0.00021099,2]
[386439434,1758299197625,500.0,0.00021099,2]
[386439435,1758299197667,500.0,0.00021099,2]
[386439436,1758299197707,500.0,0.00021099,2]
[386439437,1758299197753,500.0,0.00021099,2]
[386439438,1758299197791,500.0,0.00021099,2]
[386439439,1758299197835,500.0,0.00021099,2]
[386439440,1758299197872,500.0,0.00021099,2]
[386439441,1758299197914,500.0,0.00021099,2]
[386439442,1758299197953,500.0,0.00021099,2]
[386439443,1758299197993,500.0,0.00021099,2]
[386439444,1758299198030,500.0,0.00021099,2]
[386439445,1758299198072,500.0,0.00021099,2]
[386439446,1758299198109,500.0,0.00021099,2]
[386439447,1758299198149,500.0,0.00021099,2]
[386439448,1758299198192,500.0,0.00021099,2]
[386439449,1758299198229,500.0,0.00021099,2]
[386439450,1758299198271,500.0,0.00021099,2]
[386439451,1758299198311,500.0,0.00021099,2]
[386439452,1758299198362,500.0,0.00021099,2]
[386439453,1758299198412,500.0,0.00021099,2]
[386439454,1758299198513,500.0,0.00021099,2]
[386439456,1758299204048,480.0,0.000211,2]
[386439458,1758299217484,500.0,0.00021099,2]
[386439459,1758299217523,500.0,0.00021099,2]
[386439460,1758299217562,500.0,0.00021099,2]
[386439461,1758299217606,500.0,0.00021099,2]
[386439462,1758299217644,500.0,0.00021099,2]
[386439463,1758299217756,500.0,0.00021099,2]
[386439464,1758299217817,500.0,0.00021099,2]
[386439465,1758299217855,500.0,0.00021099,2]
[386439466,1758299217895,500.0,0.00021099,2]
[386439467,1758299217937,500.0,0.00021099,2]
[386439468,1758299217981,500.0,0.00021099,2]
[386439469,1758299218020,500.0,0.00021099,2]
[386439470,1758299218061,500.0,0.00021099,2]
[386439471,1758299218107,500.0,0.00021099,2]
[386439472,1758299218147,500.0,0.00021099,2]
[386439473,1758299218188,346.79288282,0.00021099,2]
[386439474,1758299218224,500.0,0.00021099,2]
[386439475,1758299218261,500.0,0.00021099,2]
[386439476,1758299218300,500.0,0.00021099,2]
[386439477,1758299218347,500.0,0.00021099,2]
[386439478,1758299218385,500.0,0.00021099,2]
[386439479,1758299218425,500.0,0.00021099,2]
[386439480,1758299218463,500.0,0.00021099,2]
[386439481,1758299218500,500.0,0.00021099,2]
[386439482,1758299218536,500.0,0.00021099,2]
[386439483,1758299218575,500.0,0.00021099,2]
[386439484,1758299218629,500.0,0.00021099,2]
[386439485,1758299218671,500.0,0.00021099,2]
[386439486,1758299218709,500.0,0.00021099,2]
[386439487,1758299218747,500.0,0.00021099,2]
[386439489,1758299222848,480.0,0.000211,2]
[386439491,1758299231432,150.0,0.00019367,2]
[386439494,1758299243871,480.0,0.000211,2]
[386439495,1758299246209,1836.66,0.000211,2]
[386439496,1758299264695,513.39,0.000211,2]
[386439497,1758299273351,480.0,0.000211,2]
[386439498,1758299276995,480.0,0.000211,2]
[386439499,1758299288496,480.0,0.000211,2]
[386439500,1758299290480,1036.85,0.000211,2]
[386439502,1758299308538,1144.27,0.000211,2]
[386439503,1758299315195,10727.07784529,0.00017,2]
[386439504,1758299317369,365.93724703,0.0002,2]
[386439505,1758299319501,480.0,0.000211,2]
[386439508,1758299321950,767.60331493,0.00029421,120]
[386439510,1758299323303,480.0,0.000211,2]
[386439513,1758299338522,480.0,0.000211,2]
[386439514,1758299342408,480.0,0.000211,2]
[386439518,1758299371113,480.0,0.000211,2]
[386439520,1758299379999,482.98495136,0.000211,2]
[386439522,1758299395579,480.0,0.000211,2]
[386439524,1758299402301,480.0,0.000211,2]
[386439525,1758299408470,480.0,0.000211,2]
[386439526,1758299411284,2562.52,0.000211,2]
[386439527,1758299419653,480.0,0.000211,2]
[386439528,1758299421948,1185.0,0.000211,2]
[386439555,1758299432604,-1200.0,0.00021101,2]
[386439556,1758299432613,-300.0,0.00021101,2]
[386439557,1758299432622,-1200.0,0.00021101,2]
[386439558,1758299432632,-480.0,0.00021102,2]
[386439559,1758299432641,-480.0,0.00021102,2]
[386439561,1758299432649,-480.0,0.00021102,2]
[386439563,1758299432659,-175.38724483,0.00021102,2]
[386439564,1758299432667,-500.0,0.00021102,2]
[386439566,1758299432676,-119.50388238,0.00021102,2]
[386439568,1758299432692,-380.49611762,0.00021102,2]
[386439569,1758299432701,-500.0,0.00021102,2]
[386439570,1758299432710,-634.32294194,0.00021102,2]
[386439571,1758299432719,-500.0,0.00021102,2]
[386439572,1758299432728,-371.51443184,0.00021102,2]
[386439573,1758299432738,-232.16540339,0.00021102,2]
[386439574,1758299432747,-500.0,0.00021102,2]
[386439575,1758299432756,-500.0,0.00021102,2]
[386439576,1758299432765,-500.0,0.00021102,2]
[386439577,1758299432774,-499.99999999,0.00021102,2]
[386439578,1758299432783,-480.0,0.00021102,2]
[386439579,1758299432792,-1013.02,0.00021102,2]
[386439580,1758299432801,-480.0,0.00021102,2]
[386439581,1758299432811,-925.51,0.00021102,2]
[386439582,1758299432820,-188.97044163,0.00021102,2]
[386439583,1758299432829,-480.0,0.00021102,2]
[386439584,1758299432839,-366.68194012,0.00021102,2]
[386439585,1758299432849,-480.0,0.00021102,2]
[386439586,1758299432858,-480.0,0.00021102,2]
[386439587,1758299432867,-480.0,0.00021102,2]
[386439588,1758299432876,-480.0,0.00021102,2]
[386439589,1758299432885,-480.0,0.00021103,2]
[386439590,1758299432894,-486.55563247,0.00021103,2]
[386439591,1758299432903,-480.0,0.00021103,2]
[386439592,1758299432912,-400.0,0.00021103,2]
[386439593,1758299432922,-480.0,0.00021103,2]
[386439594,1758299432932,-480.0,0.00021103,2]
[386439595,1758299432941,-480.0,0.00021103,2]
[386439596,1758299432950,-480.0,0.00021103,2]
[386439597,1758299432959,-480.0,0.00021103,2]
[386439598,1758299432968,-480.0,0.00021103,2]
[386439599,1758299432977,-480.80385915,0.00021103,2]